Cogmind - Beta 17 @@@ ROGUE MODE // 2026.07.01 @ 03:03:18 Player: TheSkyeDoctor Result: Destroyed by G-47 Trooper with Particle Gun Performance ------------- Evolutions (1) 500 Regions Visited (3) 600 Robots Destroyed (46) 230 Value Destroyed (1111) 1111 Prototype IDs (2) 40 Alien Tech Used (0) 0 Bonus (6208) 6208 TOTAL SCORE: 8689 Bonus ------- Follower Combat Kills 58 Prayed to X0-1V1 5000 Major X0-1V1 Interference 1150 Cogmind --------- Core Integrity 0/350 Matter 208/300 Energy 265/265 System Corruption 15% Temperature Cool (32) Movement Walking (190) Ox1 Location -9/Storage Parts ------- > --- POWER (1) -------- Improved Ion Engine > --- PROPULSION (3) --- Aluminum Leg Aluminum Leg Aluminum Leg > --- UTILITY (2) ------ High-capacity Storage Unit X0-1V1's Piety Tracker > --- WEAPON (3) ------- Heavy Assault Rifle Heavy Assault Rifle Heavy Assault Rifle > --- INVENTORY (20) --- Wheel Cooling System Structural Scanner Hardened Light Armor Plating Hardened Light Armor Plating Hardened Light Armor Plating Heavy Assault Rifle Improved Light Cannon Rocket Launcher Peak State ------------ > --- POWER ------------ Improved Ion Engine > --- PROPULSION ------- Aluminum Leg Aluminum Leg Aluminum Leg > --- UTILITY ---------- High-capacity Storage Unit X0-1V1's Piety Tracker > --- WEAPON ----------- Improved EM Shotgun Heavy Assault Rifle Heavy Assault Rifle > --- INVENTORY -------- Wheel Cooling System Structural Scanner Hardened Light Armor Plating Hardened Light Armor Plating Hardened Light Armor Plating Heavy Assault Rifle Heavy Assault Rifle Heavy Assault Rifle Improved Light Cannon Rocket Launcher [Rating: 28] Favorites ----------- Power Ion Engine Engine Ion Engine Propulsion Light Treads Treads Light Treads Leg Aluminum Leg Utility High-capacity Storage Unit Device X0-1V1's Piety Tracker Storage High-capacity Storage Unit Protection Hardened Light Armor Plating Weapon Small Laser Energy Gun Small Laser Ballistic Gun Assault Rifle Ballistic Cannon Improved Light Cannon Build | -11 -10 -9 -9 ------- Run | Yrd Mat Mat Sto Slots Evolved 2 | . . 2 . Power . | . . . . Propulsion 1 | . . 1 . Utility . | . . . . Weapon 1 | . . 1 . Parts Attached 31 | 7 8 11 5 Power 4 | 1 1 2 . Engine 4 | 1 1 2 . Core . | . . . . Reactor . | . . . . Propulsion 11 | 2 2 5 2 Treads 7 | 2 2 3 . Leg 4 | . . 2 2 Wheel . | . . . . Hover . | . . . . Flight . | . . . . Utility 6 | 2 4 . . Device 2 | 1 1 . . Storage 3 | 1 2 . . Processor . | . . . . Hackware . | . . . . Protection 1 | . 1 . . Artifact . | . . . . Weapon 10 | 2 1 4 3 Energy Gun 3 | 2 . 1 . Energy Cannon . | . . . . Ballistic Gun 5 | . 1 1 3 Ballistic Cannon 2 | . . 2 . Launcher . | . . . . Special Weapon . | . . . . Impact Weapon . | . . . . Slashing Weapon . | . . . . Piercing Weapon . | . . . . Special Melee Weapon . | . . . . Unidentified Prototypes 2 | . 1 1 . Parts Lost 14 | . 3 7 4 Power 3 | . 1 2 . Propulsion 4 | . . 3 1 Utility 1 | . 1 . . Weapon 6 | . 1 2 3 Highest Loss Streak 4 | . 2 4 4 To Critical Strikes . | . . . . Average Backups 7 | 2 7 9 11 Power . | . . . . Propulsion 4 | 1 5 2 1 Utility 2 | . 1 5 5 Weapon . | . . 1 5 Tool/Special . | . . . . Unused Backups 8 | . 1 . 7 Power . | . . . . Propulsion 1 | . . . 1 Utility 5 | . 1 . 4 Weapon 2 | . . . 2 Tool/Special . | . . . . Average Slot Usage (%) 91 | . 94 82 87 Engine 12 | . 13 8 11 Treads 22 | . 28 12 . Leg 4 | . . 12 22 Device 7 | . 5 11 11 Storage 13 | . 14 11 11 Protection 2 | . 3 . . Energy Gun 12 | . 15 1 10 Ballistic Gun 10 | . 12 5 11 Ballistic Cannon 5 | . . 19 9 Peak Build Rating 28 | 7 20 27 28 Average Rating 12 | 5 8 23 26 On Entrance 13 | . 7 20 27 Avg Prop Armor Cover (%) . | . . . . Naked Turns . | . . . . Heaviest Build 59 | 14 53 59 58 Greatest Support 60 | 40 40 60 20 Greatest Overweight (x) 4 | 4 1 4 2 Average Overweight (x) . | . . 1 2 Largest Inventory Capacity 20 | 8 20 20 20 Average Capacity 18 | 7 19 20 20 Most Carried 12 | 4 11 12 12 Average Carried 7 | 2 7 9 11 Final Capacity 20 | 8 20 20 20 Final Carried 12 | 4 11 12 9 Class Distribution -------------------- 82% | Mutant 17% | Gunner Dominant Class ---------------- Mutant | -10/Materials Mutant | -9/Materials Gunner | -9/Storage Resources | -11 -10 -9 -9 ----------- Run | Yrd Mat Mat Sto Matter Collected 1035 | 270 210 381 174 Remotely . | . . . . Salvage Created 1468 | 128 412 439 489 Parts 93 | 8 22 37 26 Haulers Intercepted 2 | . 1 1 . Recyclers Shooed 3 | . . 2 1 Parts Field Recycled . | . . . . Retrieved Matter . | . . . . Parts Self-Destructed . | . . . . Prevented . | . . . . Parts Restored . | . . . . Kills | -11 -10 -9 -9 ------- Run | Yrd Mat Mat Sto Combat Hostiles Destroyed 36 | . 11 16 9 Guns 18 | . 11 2 5 Cannons 17 | . . 14 3 AOE 1 | . . . 1 Classes Destroyed 10 | 2 3 4 1 Worker 1 | . . 1 . Builder 1 | . . 1 . Tunneler 3 | 2 . 1 . Hauler 2 | . 1 1 . Recycler 2 | 1 . . 1 Watcher 1 | . . . 1 Swarmer 12 | . 3 9 . Grunt 18 | . 8 4 6 Brawler 1 | . . 1 . Sentry 5 | . . 2 3 Best Kill Streak 7 | 1 3 7 4 Combat Bots Only 6 | . 3 6 3 Max Kills in Single Turn 2 | 1 1 2 2 Gunslinging . | . . . . Exploded 1 | . . . 1 Melee . | . . . . Uniques/NPCs Destroyed . | . . . . Combat | -11 -10 -9 -9 -------- Run | Yrd Mat Mat Sto Hostile Shots Fired 281 | . 86 122 73 Missed 76 | . 17 36 23 Hits 205 | . 69 86 50 Projectile 205 | . 69 86 50 Critical Strikes 1 | . . . 1 Damage Taken 2386 | . 849 827 710 Core 485 | . 133 195 157 Absorbed by Shields . | . . . . Core Remaining (%) 73 | 100 46 . . Volleys Fired 121 | 7 55 37 22 Largest 3 | 2 2 3 3 Hottest 106 | 90 90 106 101 Shots Fired 257 | 14 109 80 54 Gun 173 | 14 109 13 37 Cannon 84 | . . 67 17 Launcher . | . . . . Special . | . . . . Kinetic 163 | . 46 73 44 Thermal 83 | 14 63 6 . Explosive . | . . . . Electromagnetic 11 | . . 1 10 Robot Hit Streak 13 | 4 13 5 12 Robot Miss Streak 5 | 2 5 4 4 Penetration Max . | . . . . Secondary Targets 1 | . . . 1 Max Gunslinging Chain 1 | . . . 1 Shots Hit Robots 145 | 7 67 37 34 Core Hits 67 | 4 22 21 20 Critical Kills . | . . . . Critical Parts Destroyed . | . . . . Critical Strikes 2 | 1 1 . . Burn 2 | 1 1 . . Melee Attacks . | . . . . Impact . | . . . . Slashing . | . . . . Piercing . | . . . . Sneak Attacks . | . . . . Combat Hostiles . | . . . . Follow-up Attacks . | . . . . Damage Inflicted 2442 | 81 816 842 703 Guns 1419 | 81 816 99 423 Cannons 959 | . . 743 216 Explosions 64 | . . . 64 Melee . | . . . . Ramming . | . . . . Kinetic 1646 | . 355 785 506 Thermal 641 | 81 461 35 64 Explosive . | . . . . Electromagnetic 155 | . . 22 133 Impact . | . . . . Slashing . | . . . . Piercing . | . . . . Highest Corruption 15 | . . 15 15 Average Corruption 15 | . . 15 15 Corruption Purged . | . . . . Corruption Blocked . | . . . . Effects 21 | . . 6 15 Message Errors 5 | . . 1 4 Matter Fused 2 | . . 2 . Heat Flow Errors 5 | . . 1 4 Energy Discharges 1 | . . . 1 Parts Rejected 1 | . . 1 . Data Loss (minor) 2 | . . . 2 Data Loss (major) 2 | . . 1 1 Misfires 1 | . . . 1 Weapon Failures 2 | . . . 2 Overload Shots . | . . . . Overflow Damage 2 | . . 2 . Projectiles 2 | . . 2 . Explosions . | . . . . Melee . | . . . . Knockbacks 6 | . . 5 1 Impact . | . . . . Kinetic 6 | . . 5 1 Secondary . | . . . . Self-Inflicted Damage . | . . . . Shots . | . . . . Rammed . | . . . . Targets Rammed . | . . . . Kicked . | . . . . Crushed . | . . . . Highest Temperature 342 | 120 210 342 298 Average Temperature 90 | 47 59 139 103 Received Heat Transfer 921 | . 372 261 288 Effects 4 | . . 4 . Interference 3 | . . 3 . Matter Decay 1 | . . 1 . Siege Activations . | . . . . Martial Activations . | . . . . Shielding Activations . | . . . . Robots Disrupted . | . . . . Combat Hostiles . | . . . . Robots Corrupted . | . . . . Combat Hostiles . | . . . . Parts Fried . | . . . . Impact Corruptions . | . . . . Robots Melted . | . . . . Combat Hostiles . | . . . . Parts Melted 2 | 1 1 . . Heat Transferred 1739 | 285 1229 75 150 Parts Sabotaged . | . . . . Parts Stolen . | . . . . Parts Stripped . | . . . . Power Chain Reactions 1 | . . . 1 Alert | -11 -10 -9 -9 ------- Run | Yrd Mat Mat Sto Maximum Alert Level 1 | . . 1 1 Low Security (%) 96 | 100 100 81 95 Level 1 3 | . . 18 4 Level 2 . | . . . . Level 3 . | . . . . Level 4 . | . . . . Level 5 . | . . . . High Security . | . . . . Max Security . | . . . . Peak Influence 253 | 5 120 239 253 Initial 57 | . . . 57 Average 47 | 1 17 144 92 Influence Increases 1116 | 15 297 438 366 Destroy 0b10 Robot/C 760 | . 220 320 220 Destroy 0b10 Robot/NC 60 | 15 5 20 20 Destroy Leader 168 | . 52 62 54 Allied During Kill 5 | . . . 5 Successful Hack 5 | . 5 . . Disable Machine 30 | . . . 30 Destroy Structure 43 | . . 6 37 Lose Combat Pursuer 45 | . 15 30 . Influence Decreases 863 | 15 297 302 249 Entered New Map 79 | . . . 79 Time Decay 664 | 15 287 232 130 Lost Part 120 | . 10 70 40 Squads Dispatched 2 | . 2 . . Investigation . | . . . . Extermination . | . . . . Reinforcement 2 | . 2 . . Assault . | . . . . Garrison . | . . . . Intercept . | . . . . Searches Triggered . | . . . . Construction Impeded . | . . . . Haulers Reinforced . | . . . . Active Scanning Responses . | . . . . Cargo Convoy Interrupts . | . . . . Stealth | -11 -10 -9 -9 --------- Run | Yrd Mat Mat Sto Distress Signals 6 | . 2 2 2 Communications Jammed . | . . . . Distress Signals . | . . . . Times Spotted 72 | . 25 33 14 Peak Tracking Total 10 | . 4 10 7 Tactical Retreats 2 | . 1 1 . Traps | -11 -10 -9 -9 ------- Run | Yrd Mat Mat Sto Traps Triggered 3 | . 1 . 2 Indirectly . | . . . . Trap Hack Attempts . | . . . . Triggered . | . . . . Disarmed . | . . . . Reprogrammed . | . . . . Reused . | . . . . Traps Extracted . | . . . . Installed . | . . . . Triggered . | . . . . Machines | -11 -10 -9 -9 ---------- Run | Yrd Mat Mat Sto Machines Disabled 2 | . . . 2 Max in Single Turn 1 | . . . 1 Machines Repaired . | . . . . Machines Dismantled . | . . . . Machines Sabotaged . | . . . . Overloaded Fab Kills . | . . . . Hacking | -11 -10 -9 -9 --------- Run | Yrd Mat Mat Sto Machines Accessed 5 | . 4 1 . Terminals 5 | . 4 1 . Fabricators . | . . . . Repair Stations . | . . . . Recycling Units . | . . . . Scanalyzers . | . . . . Garrison Access . | . . . . Total Hacks 10 | . 9 1 . Successful 1 | . 1 . . Failed 9 | . 8 1 . Catastrophic 4 | . 3 1 . Database Lockouts . | . . . . Manual 11 | . 10 1 . Terminals 10 | . 9 1 . Fabricators . | . . . . Repair Stations . | . . . . Recycling Units . | . . . . Scanalyzers . | . . . . Garrison Access . | . . . . Terminal Hacks . | . . . . Fabricator Hacks . | . . . . Repair Station Hacks . | . . . . Recycling Unit Hacks . | . . . . Scanalyzer . | . . . . Garrison Access Hacks . | . . . . Unauthorized Hacks 1 | . 1 . . Terminals 1 | . 1 . . Botnet 1 | . 1 . . Fabricators . | . . . . Repair Stations . | . . . . Recycling Units . | . . . . Scanalyzers . | . . . . Garrison Access . | . . . . Data Cores Recovered . | . . . . Used . | . . . . Hacking Detections 4 | . 3 1 . Full Trace Events . | . . . . Feedback Events . | . . . . Feedback Blocked . | . . . . Robot Schematics Acquired . | . . . . Robots Built . | . . . . Authchips . | . . . . Time . | . . . . Total Robot Build Rating . | . . . . Part Schematics Acquired . | . . . . Parts Built . | . . . . Authchips . | . . . . Time . | . . . . Total Part Build Rating . | . . . . Part Studies Acquired . | . . . . Parts Repaired . | . . . . Time . | . . . . Parts Recycled . | . . . . Recycled Matter . | . . . . Retrieved Matter . | . . . . Retrieved Components . | . . . . Parts Scanalyzed . | . . . . Part Schematics Acquired . | . . . . Parts Damaged . | . . . . Bothacking | -11 -10 -9 -9 ------------ Run | Yrd Mat Mat Sto Used RIF Installer . | . . . . Robots Hacked . | . . . . Non-combat . | . . . . Combat . | . . . . Robot Hacks Applied . | . . . . Relay Couplers Released . | . . . . Fabnet Peak Effective % . | . . . . Robots Rewired . | . . . . Allies Hacked . | . . . . Hacks Repelled . | . . . . Allies | -11 -10 -9 -9 -------- Run | Yrd Mat Mat Sto Total Allies 1 | . . . 1 Largest Group 1 | . . . 1 Highest-Rated Group 85 | . . . 85 Highest-Rated Ally 85 | . . . 85 Total Orders . | . . . . Ally Attacks 6 | . . . 6 Total Damage 194 | . . . 194 Kills 4 | . . . 4 Allies Corrupted . | . . . . Allies Melted . | . . . . X0-1V1 Amusement Gains 13 | . 8 5 . Good Acts 2 | . . 1 1 Bad Acts 9 | . . 8 1 Intel | -11 -10 -9 -9 ------- Run | Yrd Mat Mat Sto Active Infowar (turns) 656 | 14 642 . . Seismic 656 | 14 642 . . Robot Analysis Total . | . . . . Derelict Logs Recovered . | . . . . Drone Launches . | . . . . Drone Recoveries . | . . . . Exploration | -11 -10 -9 -9 ------------- Run | Yrd Mat Mat Sto Turns Passed 2898 | 163 1912 562 261 Spaces Moved 981 | 80 643 191 67 Core 10 | 10 . . . Treads 787 | 70 643 74 . Legs 184 | . . 117 67 Wheels . | . . . . Hover . | . . . . Flight . | . . . . Fastest Speed 50 | 50 160 160 260 Average Speed 223 | 160 226 223 260 Slowest Speed 400 | 250 240 400 260 Overloaded Moves . | . . . . Propulsion Burnouts . | . . . . Robots Hopped . | . . . . Potential Cave-ins . | . . . . Cave-ins Triggered . | . . . . Exploration Rate (%) 29 | 5 67 24 21 Regions Visited 3 Branch Regions 1 Pre-discovered Areas . | . . . . Known Exits Taken . | . . . . Unknown Exits Taken 3 | 1 1 1 . Scrap Searched . | . . . . Spaces Dug . | . . . . Terrain Destroyed 12 | . . 2 10 Melee . | . . . . Projectile 5 | . . 2 3 AOE 7 | . . . 7 Terrain Rammed . | . . . . Walls Destroyed . | . . . . Machines Disabled . | . . . . Actions | -11 -10 -9 -9 --------- Run | Yrd Mat Mat Sto Total 1441 | 97 989 249 106 Wait 266 | . 266 . . Move 978 | 79 642 190 67 Hop . | . . . . Pick Up 22 | 4 11 7 . Fast Attach 17 | 7 . 6 4 Attach 13 | . 4 6 3 Detach 2 | . 1 1 . Swap 7 | . 5 2 . Drop 5 | . 5 . . Fire 121 | 7 55 37 22 Melee . | . . . . Ram . | . . . . Kick . | . . . . Crush . | . . . . Escape Stasis 10 | . . . 10 Rewire . | . . . . Trap . | . . . . Miscellaneous . | . . . . Route ------- -11/Scrapyard -10/Materials (discovered 4 exits: *Mat x2 / [*Min] / [*Sub]) -9/Materials (discovered 2 exits: [*Min] / [*Sto]) -9/Storage History --------- Turn | Location | Event 26 | -11/Scrapyard | Discovered new exit (range 14) 164 | -11/Scrapyard | Entered Materials 309 | -10/Materials | Build established: Mutant 413 | -10/Materials | Discovered new exit (range 9) 486 | -10/Materials | Discovered new exit (range 7) 694 | -10/Materials | Discovered new exit (range 13) 859 | -10/Materials | Core integrity fell below 50% 1882 | -10/Materials | Discovered new exit (range 9) 1929 | -10/Materials | Prayed at D.C.S.S. Altar Unit 2076 | -10/Materials | Entered another Materials area 2076 | -9/Materials | Evolved 2 slots: Propulsion x1, Weapon x1 2081 | -9/Materials | Ranged accuracy permanently improved by X0-1V1 (+5%; -50 max core) 2198 | -9/Materials | Lost 4 parts (1p1n2w) 2237 | -9/Materials | X0-1V1 sent someone to keep an eye on you 2267 | -9/Materials | Discovered new exit (range 9) 2267 | -9/Materials | X0-1V1 sent you into danger 2311 | -9/Materials | Core integrity fell below 50% 2317 | -9/Materials | Discovered new exit (range 16) 2483 | -9/Materials | System corruption reached 10% 2583 | -9/Materials | X0-1V1 announced a LAN party 2638 | -9/Materials | Entered Storage 2749 | -9/Storage | Build established: Gunner 2875 | -9/Storage | Core integrity fell below 20% 2879 | -9/Storage | X0-1V1 sent allied B-75 Beast (x1) 2899 | -9/Storage | Destroyed by G-47 Trooper with Particle Gun Last Messages --------------- 02889_ R-06 Scavenger collects Sml. Laser. 02889_ U-05 Engineer lays Concrete. 02889_ R-06 Scavenger collects Ion Engine. 02889_ U-05 Engineer lays Concrete. 02890_ K-01 Serf collects debris. 02890_ U-05 Engineer lays Concrete. 02890_ Acquired Aluminum Leg. 02891_ A-02 Transporter destroyed. 02891_ U-05 Engineer destroyed. 02892_ K-01 Serf collects debris. 02892_ U-05 Engineer builds a Wall. 02892_ R-06 Scavenger collects Welding Torch. 02892_ R-06 Scavenger collects Wheel. 02893_ K-01 Serf collects debris. 02896_ U-05 Engineer builds a Wall. 02896_ R-06 Scavenger collects Sml. Laser. 02897_ G-34 Mercenary destroyed. 02897_ K-01 Serf collects debris. 02899_ U-05 Engineer builds a Wall. 02899_ X0-1V1 howls with laughter! Map ----- +----------------------------------------------------+ | ???????????????????????# + #???? | | ???????????????????????# " """ # #???? | | ???????????????????????# """ # #???? | | ???????????????????????# " """ # #???? | | ???????????????????????# # #???? | | ???????????????????????########## #???? | | ????????????????????????????????# #???? | | ????????????????????????????????# #???? | | ????????????????????????????????# #???? | | ????????????????????????????????# #???? | | ?????????????????????????####T### #???? | | ???????????????????????# # #???? | | ???????????????????????# # #???? | | ???????????????????????# """" # #???? | | ???????????????????????# """"?# #???? | | ???????????????????????? """??# #???? | | ??????????????????????#T """" # = #???? | | ??????????????????????#" + #???? | | ????????????+ ????????# # #???? | | ????????????# ??????# ??# #???? | | ????????????# ?????#### ????# #???? | | ????????????#r ???????????## ##??? | | ???????????## ###########k #??? | | ???????????# g% % % % #??? | | ???????????+ r%=! % % ##?? | | ???????????# u %= u%=!@% ^^ % ##?? | | ???????????# ##=*=;= [%* ###%%= ##?? | | ???????????? # !=%=k #####+#####? | | ???????????# + !== # """ """ #? | | ???????????#????#! # BB# """ """ # | | ????????????????# !?# BB# """ """ #? | | ??????????????? + k??# # #? | | ??????????????### ???# # #? | | ????????????????#????# # #? | | ?????????????????????# # #? | | ?????????????????????# a# #? | | ????????????????????? # ###########? | | ????????????????????? ? #??????????? | | ????????????????????? !%* ? #??????????? | | ?????????????????????% ! ? #??????????? | | ??????????????????????? ??????????????? | | ????????????????????????????????????????? | | ????????????????????????????????????????? | | ????????????????????????????????????????? | | ????????????????????????????????????????? | | ????????????????????????????????????????? | | ????????????????????????????????????????? | | ????????????????????????????????????????? | | ????????????????????????????????????????? | | ????????????????????????????????????????? | +----------------------------------------------------+ Best States ------------- Heat Dissipation 28 Energy Generation 12 Energy Capacity 265 Matter Stores 300 Matter Capacity 300 Sight Range 16 Terrain Scan Density 10 Armor Coverage 150 Evasion (%) 40 Recoil Reduction 3 Item Schematics ----------------- None Robot Schematics ------------------ None Fabricated ------------ Nothing Repaired ---------- Nothing Studied --------- None Alien Tech Used ----------------- None Achievements -------------- None Challenges ------------ None Game ------ Seed SpacefoldDiametricBlaster Manual? 0 Play Time 00:13:28 Cumulative 105.5 hours Start 2026.07.01 @ 02:51:23 End 2026.07.01 @ 03:03:18 Sessions 1 Manual Loads 0 Difficulty Rogue Special Mode None Game No. 229 Rogue 229 Adventurer 0 Explorer 0 Win Type - Total 0 Types 0/0/0/0/0/0/0/0/0/0 Lore% 48 Gallery% 49 Achievement% 39 Wizard Run 0 Options --------- Layout 2 ASCII 0 Keyboard 1 Movement Arrows Keybinds 0 Fullscreen 1 Font 24/Smallcaps Map View 50x44 Zoom Use 0% Tactical HUD 1 Map Filters NONE Filters NONE Steam 1 RUN: 11d56951-f236-4e62-bb6e-a1c9154dff71